[Event "Titled Tuesday Blitz November 14 Late 2023"]
[White "Bogaudinov, Rushan"]
[Black "Kushko, Dmitriy"]
[WhiteFideId "4129288"]
[BlackFideId "14162261"]
[WhiteElo "2395"]
[BlackElo "2666"]
[Result "0-1"]
[Round "2"]
[TimeControl "180+1"]
[Date "2023.11.14"]
[WhiteClock "0:00:00"]
[BlackClock "0:00:04"]
[Board "68"]

1. e4 {[%clk 0:03:00]}  c6 {[%clk 0:03:00]} 2. d4 {[%clk 0:02:59]}  d5 {[%clk 0:03:00]} 3. e5 {[%clk 0:02:59]}  Bf5 {[%clk 0:02:59]} 4. c4 {[%clk 0:02:59]}  e6 {[%clk 0:02:59]} 5. Nc3 {[%clk 0:02:59]}  Bb4 {[%clk 0:02:59]} 6. Qb3 {[%clk 0:02:56]}  Qa5 {[%clk 0:02:58]} 7. Bd2 {[%clk 0:02:45]}  Ne7 {[%clk 0:02:57]} 8. a3 {[%clk 0:02:38]}  Bxc3 {[%clk 0:02:53]} 9. bxc3 {[%clk 0:02:31]}  Qb6 {[%clk 0:02:50]} 10. Qb4 {[%clk 0:02:25]}  Na6 {[%clk 0:02:45]} 11. Qxb6 {[%clk 0:02:17]}  axb6 {[%clk 0:02:45]} 12. cxd5 {[%clk 0:02:17]}  exd5 {[%clk 0:02:41]} 13. Nf3 {[%clk 0:02:08]}  h6 {[%clk 0:02:37]} 14. Be2 {[%clk 0:02:07]}  b5 {[%clk 0:02:35]} 15. O-O {[%clk 0:01:55]}  Nc7 {[%clk 0:02:32]} 16. Ne1 {[%clk 0:01:44]}  h5 {[%clk 0:02:22]} 17. Nd3 {[%clk 0:01:38]}  Ne6 {[%clk 0:02:20]} 18. Nb2 {[%clk 0:01:31]}  O-O {[%clk 0:02:07]} 19. Bxh5 {[%clk 0:01:23]}  Nc8 {[%clk 0:02:02]} 20. Be2 {[%clk 0:01:18]}  Nb6 {[%clk 0:02:01]} 21. g4 {[%clk 0:01:15]}  Bc2 {[%clk 0:01:57]} 22. f4 {[%clk 0:01:15]}  f5 {[%clk 0:01:52]} 23. exf6 {[%clk 0:01:12]}  gxf6 {[%clk 0:01:52]} 24. f5 {[%clk 0:01:05]}  Ng5 {[%clk 0:01:51]} 25. Bxg5 {[%clk 0:01:00]}  fxg5 {[%clk 0:01:51]} 26. Rfe1 {[%clk 0:00:53]}  Rfe8 {[%clk 0:01:46]} 27. Kf2 {[%clk 0:00:51]}  Kf7 {[%clk 0:01:45]} 28. Bf1 {[%clk 0:00:46]}  Rxe1 {[%clk 0:01:44]} 29. Kxe1 {[%clk 0:00:46]}  Kf6 {[%clk 0:01:22]} 30. Kd2 {[%clk 0:00:46]}  Be4 {[%clk 0:01:22]} 31. Bd3 {[%clk 0:00:29]}  Rh8 {[%clk 0:01:21]} 32. Bxe4 {[%clk 0:00:28]}  Rxh2+ {[%clk 0:01:20]} 33. Ke3 {[%clk 0:00:24]}  dxe4 {[%clk 0:01:09]} 34. Nd1 {[%clk 0:00:21]}  Nc4+ {[%clk 0:00:57]} 35. Kxe4 {[%clk 0:00:21]}  Rh3 {[%clk 0:00:57]} 36. d5 {[%clk 0:00:19]}  Nd2+ {[%clk 0:00:40]} 37. Kd4 {[%clk 0:00:14]}  Nb3+ {[%clk 0:00:41]} 38. Ke4 {[%clk 0:00:13]}  cxd5+ {[%clk 0:00:41]} 39. Kxd5 {[%clk 0:00:13]}  Nxa1 {[%clk 0:00:42]} 40. Nf2 {[%clk 0:00:13]}  Rh4 {[%clk 0:00:31]} 41. Kc5 {[%clk 0:00:11]}  Ke5 {[%clk 0:00:28]} 42. Kxb5 {[%clk 0:00:10]}  Nc2 {[%clk 0:00:28]} 43. a4 {[%clk 0:00:08]}  Ne1 {[%clk 0:00:19]} 44. Kb6 {[%clk 0:00:07]}  Rh2 {[%clk 0:00:19]} 45. Nd1 {[%clk 0:00:07]}  Ra2 {[%clk 0:00:19]} 46. a5 {[%clk 0:00:07]}  Ke4 {[%clk 0:00:17]} 47. f6 {[%clk 0:00:06]}  Rd2 {[%clk 0:00:13]} 48. f7 {[%clk 0:00:05]}  Rd6+ {[%clk 0:00:13]} 49. Kxb7 {[%clk 0:00:05]}  Rf6 {[%clk 0:00:14]} 50. a6 {[%clk 0:00:05]}  Rxf7+ {[%clk 0:00:15]} 51. Kb8 {[%clk 0:00:05]}  Kf3 {[%clk 0:00:05]} 52. a7 {[%clk 0:00:05]}  Kxg4 {[%clk 0:00:05]} 53. Ne3+ {[%clk 0:00:03]}  Kf4 {[%clk 0:00:05]} 54. Nd5+ {[%clk 0:00:03]}  Ke5 {[%clk 0:00:04]} 55. Nc7 {[%clk 0:00:03]}  Rf8+ {[%clk 0:00:04]} 56. Kb7 {[%clk 0:00:00]}  g4 {[%clk 0:00:04]} 0-1


[Site "https://www.chess.com"]

[Event "Titled Tuesday Blitz November 14 Late 2023"]
[White "Sivakumar, Shaaketh"]
[Black "Doluhanova, Evgeniya"]
[WhiteFideId "30940176"]
[BlackFideId "14112035"]
[WhiteElo "2648"]
[BlackElo "2351"]
[Result "1-0"]
[Round "2"]
[TimeControl "180+1"]
[Date "2023.11.14"]
[WhiteClock "0:02:19"]
[BlackClock "0:01:57"]
[Board "72"]

1. Nf3 {[%clk 0:02:27]}  Nf6 {[%clk 0:02:58]} 2. c4 {[%clk 0:02:26]}  e6 {[%clk 0:02:56]} 3. g3 {[%clk 0:02:26]}  d5 {[%clk 0:02:56]} 4. Bg2 {[%clk 0:02:27]}  dxc4 {[%clk 0:02:54]} 5. O-O {[%clk 0:02:26]}  c5 {[%clk 0:02:54]} 6. Na3 {[%clk 0:02:26]}  Bd7 {[%clk 0:02:52]} 7. Nxc4 {[%clk 0:02:26]}  Bc6 {[%clk 0:02:52]} 8. Nce5 {[%clk 0:02:25]}  Bd5 {[%clk 0:02:48]} 9. d3 {[%clk 0:02:25]}  Nc6 {[%clk 0:02:43]} 10. e4 {[%clk 0:02:23]}  Nxe5 {[%clk 0:02:43]} 11. Nxe5 {[%clk 0:02:23]}  Bc6 {[%clk 0:02:44]} 12. Nxc6 {[%clk 0:02:23]}  bxc6 {[%clk 0:02:43]} 13. Qa4 {[%clk 0:02:24]}  Qd7 {[%clk 0:02:42]} 14. Bg5 {[%clk 0:02:23]}  Be7 {[%clk 0:02:39]} 15. Bxf6 {[%clk 0:02:23]}  Bxf6 {[%clk 0:02:39]} 16. e5 {[%clk 0:02:23]}  O-O {[%clk 0:01:57]} 17. exf6 {[%clk 0:02:19]} 1-0


[Site "https://www.chess.com"]

[Event "Titled Tuesday Blitz November 14 Late 2023"]
[White "patzersame"]
[Black "reevecanada"]
[WhiteElo "2340"]
[BlackElo "2648"]
[Result "0-1"]
[Round "2"]
[TimeControl "180+1"]
[Date "2023.11.14"]
[WhiteClock "0:00:02"]
[BlackClock "0:01:08"]
[Board "73"]

1. e4 {[%clk 0:03:00]}  c5 {[%clk 0:02:54]} 2. b4 {[%clk 0:03:00]}  cxb4 {[%clk 0:02:49]} 3. a3 {[%clk 0:03:01]}  bxa3 {[%clk 0:02:48]} 4. Bxa3 {[%clk 0:03:01]}  d6 {[%clk 0:02:48]} 5. d4 {[%clk 0:03:01]}  Nf6 {[%clk 0:02:47]} 6. Bd3 {[%clk 0:03:01]}  e5 {[%clk 0:02:44]} 7. dxe5 {[%clk 0:03:00]}  dxe5 {[%clk 0:02:45]} 8. Bxf8 {[%clk 0:03:01]}  Kxf8 {[%clk 0:02:46]} 9. Nf3 {[%clk 0:03:02]}  Nc6 {[%clk 0:02:45]} 10. O-O {[%clk 0:03:02]}  g6 {[%clk 0:02:46]} 11. Qc1 {[%clk 0:02:55]}  Kg7 {[%clk 0:02:45]} 12. Nc3 {[%clk 0:02:54]}  Bg4 {[%clk 0:02:43]} 13. Nd2 {[%clk 0:02:42]}  Nh5 {[%clk 0:02:38]} 14. Nc4 {[%clk 0:02:33]}  Be6 {[%clk 0:02:34]} 15. Qb2 {[%clk 0:02:30]}  Nf4 {[%clk 0:02:32]} 16. Rfd1 {[%clk 0:02:12]}  Qg5 {[%clk 0:02:24]} 17. Bf1 {[%clk 0:02:05]}  Nh3+ {[%clk 0:02:23]} 18. Kh1 {[%clk 0:02:05]}  Nxf2+ {[%clk 0:02:22]} 19. Kg1 {[%clk 0:02:05]}  Nxd1 {[%clk 0:02:23]} 20. Rxd1 {[%clk 0:02:05]}  Rhd8 {[%clk 0:02:20]} 21. Nd5 {[%clk 0:02:02]}  Nd4 {[%clk 0:02:07]} 22. Qxb7 {[%clk 0:01:46]}  Nf3+ {[%clk 0:02:06]} 23. Kh1 {[%clk 0:01:41]}  Nxh2 {[%clk 0:02:05]} 24. Kxh2 {[%clk 0:01:26]}  Qh5+ {[%clk 0:02:02]} 25. Kg1 {[%clk 0:01:26]}  Qxd1 {[%clk 0:02:01]} 26. Qe7 {[%clk 0:00:40]}  Qd4+ {[%clk 0:01:54]} 27. Kh1 {[%clk 0:00:35]}  Bxd5 {[%clk 0:01:52]} 28. exd5 {[%clk 0:00:35]}  Qxd5 {[%clk 0:01:52]} 29. Ne3 {[%clk 0:00:23]}  Qe6 {[%clk 0:01:48]} 30. Qg5 {[%clk 0:00:19]}  h6 {[%clk 0:01:46]} 31. Qg3 {[%clk 0:00:18]}  Rd4 {[%clk 0:01:44]} 32. Bd3 {[%clk 0:00:16]}  Rad8 {[%clk 0:01:42]} 33. Nf5+ {[%clk 0:00:16]}  Kh7 {[%clk 0:01:38]} 34. Nxd4 {[%clk 0:00:17]}  Rxd4 {[%clk 0:01:38]} 35. Qf3 {[%clk 0:00:17]}  e4 {[%clk 0:01:36]} 36. Qe3 {[%clk 0:00:16]}  exd3 {[%clk 0:01:12]} 37. Qxd4 {[%clk 0:00:16]}  dxc2 {[%clk 0:01:10]} 38. Qc3 {[%clk 0:00:16]}  Qf5 {[%clk 0:01:09]} 39. Kh2 {[%clk 0:00:14]}  a5 {[%clk 0:01:08]} 40. g4 {[%clk 0:00:12]}  Qf4+ {[%clk 0:01:06]} 41. Kh3 {[%clk 0:00:10]}  c1=Q {[%clk 0:01:07]} 42. g5 {[%clk 0:00:02]}  Qxc3+ {[%clk 0:01:06]} 43. Kg2 {[%clk 0:00:02]}  Qcg3+ {[%clk 0:01:07]} 44. Kh1 {[%clk 0:00:02]}  Qfh4# {[%clk 0:01:08]} 0-1


[Site "https://www.chess.com"]

[Event "Titled Tuesday Blitz November 14 Late 2023"]
[White "Mazzilli, Piero"]
[Black "Papasimakopoulos, Alexandros"]
[WhiteFideId "807087"]
[BlackFideId "4244125"]
[WhiteElo "2334"]
[BlackElo "2643"]
[Result "1/2-1/2"]
[Round "2"]
[TimeControl "180+1"]
[Date "2023.11.14"]
[WhiteClock "0:00:24"]
[BlackClock "0:00:57"]
[Board "74"]

1. e4 {[%clk 0:03:00]}  e6 {[%clk 0:02:59]} 2. Nf3 {[%clk 0:03:00]}  d5 {[%clk 0:02:59]} 3. Nc3 {[%clk 0:03:00]}  Nf6 {[%clk 0:02:57]} 4. e5 {[%clk 0:03:01]}  Nfd7 {[%clk 0:02:57]} 5. d4 {[%clk 0:03:01]}  c5 {[%clk 0:02:57]} 6. dxc5 {[%clk 0:03:02]}  Nc6 {[%clk 0:02:57]} 7. Bf4 {[%clk 0:03:02]}  Nxc5 {[%clk 0:02:56]} 8. Be2 {[%clk 0:03:02]}  Be7 {[%clk 0:02:55]} 9. Bg3 {[%clk 0:03:01]}  a6 {[%clk 0:02:53]} 10. a4 {[%clk 0:02:58]}  d4 {[%clk 0:02:48]} 11. Nb1 {[%clk 0:02:53]}  h5 {[%clk 0:02:45]} 12. h4 {[%clk 0:02:52]}  Ne4 {[%clk 0:02:45]} 13. Nbd2 {[%clk 0:02:01]}  Nxg3 {[%clk 0:02:44]} 14. fxg3 {[%clk 0:02:02]}  Qd5 {[%clk 0:02:29]} 15. Nc4 {[%clk 0:01:51]}  Bb4+ {[%clk 0:02:25]} 16. Kf1 {[%clk 0:01:37]}  Bc5 {[%clk 0:02:22]} 17. Bd3 {[%clk 0:01:34]}  Bd7 {[%clk 0:02:17]} 18. Qe2 {[%clk 0:01:31]}  f5 {[%clk 0:01:52]} 19. exf6 {[%clk 0:01:27]}  e5 {[%clk 0:01:41]} 20. fxg7 {[%clk 0:01:21]}  Rg8 {[%clk 0:01:41]} 21. Bg6+ {[%clk 0:01:06]}  Kd8 {[%clk 0:01:40]} 22. Nfxe5 {[%clk 0:00:56]}  Nxe5 {[%clk 0:01:39]} 23. Nxe5 {[%clk 0:00:55]}  Rxg7 {[%clk 0:01:38]} 24. Nxd7 {[%clk 0:00:27]}  Rxg6 {[%clk 0:01:35]} 25. Nxc5 {[%clk 0:00:27]}  Qxc5 {[%clk 0:01:30]} 26. Rd1 {[%clk 0:00:23]}  Kc7 {[%clk 0:01:26]} 27. Qd3 {[%clk 0:00:19]}  Rf6+ {[%clk 0:01:21]} 28. Kg1 {[%clk 0:00:20]}  Re8 {[%clk 0:01:19]} 29. Qxd4 {[%clk 0:00:17]}  Qxd4+ {[%clk 0:01:12]} 30. Rxd4 {[%clk 0:00:17]}  Re2 {[%clk 0:01:12]} 31. Rc4+ {[%clk 0:00:17]}  Kb6 {[%clk 0:01:12]} 32. Kh2 {[%clk 0:00:17]}  Rff2 {[%clk 0:01:11]} 33. Rg1 {[%clk 0:00:18]}  Rxc2 {[%clk 0:01:11]} 34. Rxc2 {[%clk 0:00:19]}  Rxc2 {[%clk 0:01:12]} 35. Rb1 {[%clk 0:00:19]}  Ka5 {[%clk 0:01:10]} 36. b3 {[%clk 0:00:20]}  Kb4 {[%clk 0:01:10]} 37. Kh3 {[%clk 0:00:20]}  Rd2 {[%clk 0:01:09]} 38. g4 {[%clk 0:00:20]}  hxg4+ {[%clk 0:01:09]} 39. Kxg4 {[%clk 0:00:21]}  Rxg2+ {[%clk 0:01:09]} 40. Kf5 {[%clk 0:00:21]}  Rf2+ {[%clk 0:01:09]} 41. Kg5 {[%clk 0:00:21]}  Rg2+ {[%clk 0:01:09]} 42. Kf5 {[%clk 0:00:22]}  Kc3 {[%clk 0:01:09]} 43. h5 {[%clk 0:00:22]}  Rf2+ {[%clk 0:01:08]} 44. Kg6 {[%clk 0:00:22]}  Rg2+ {[%clk 0:01:08]} 45. Kf7 {[%clk 0:00:22]}  Rh2 {[%clk 0:01:06]} 46. Kg6 {[%clk 0:00:22]}  Kc2 {[%clk 0:01:07]} 47. Rg1 {[%clk 0:00:22]}  Kxb3 {[%clk 0:01:03]} 48. Rg4 {[%clk 0:00:21]}  b5 {[%clk 0:01:01]} 49. axb5 {[%clk 0:00:21]}  axb5 {[%clk 0:01:02]} 50. h6 {[%clk 0:00:22]}  b4 {[%clk 0:01:02]} 51. h7 {[%clk 0:00:22]}  Ka3 {[%clk 0:01:00]} 52. Kg7 {[%clk 0:00:22]}  b3 {[%clk 0:01:00]} 53. Rg3 {[%clk 0:00:22]}  Ka2 {[%clk 0:00:58]} 54. Rxb3 {[%clk 0:00:22]}  Kxb3 {[%clk 0:00:57]} 55. h8=Q {[%clk 0:00:23]}  Rxh8 {[%clk 0:00:57]} 56. Kxh8 {[%clk 0:00:24]} 1/2-1/2


[Site "https://www.chess.com"]

[Event "Titled Tuesday Blitz November 14 Late 2023"]
[White "Szente Varga, Fruzsina"]
[Black "Ahmad, Khagan"]
[WhiteFideId "712264"]
[BlackFideId "13431552"]
[WhiteElo "2333"]
[BlackElo "2641"]
[Result "0-1"]
[Round "2"]
[TimeControl "180+1"]
[Date "2023.11.14"]
[WhiteClock "0:00:04"]
[BlackClock "0:00:16"]
[Board "75"]

1. e4 {[%clk 0:03:00]}  e5 {[%clk 0:02:56]} 2. Nf3 {[%clk 0:03:00]}  Nc6 {[%clk 0:02:56]} 3. Bb5 {[%clk 0:03:00]}  a6 {[%clk 0:02:43]} 4. Ba4 {[%clk 0:02:59]}  Nf6 {[%clk 0:02:44]} 5. Qe2 {[%clk 0:02:59]}  b5 {[%clk 0:02:43]} 6. Bb3 {[%clk 0:02:59]}  Bc5 {[%clk 0:02:43]} 7. c3 {[%clk 0:02:58]}  d6 {[%clk 0:02:43]} 8. O-O {[%clk 0:02:58]}  O-O {[%clk 0:02:43]} 9. Rd1 {[%clk 0:02:54]}  Bb6 {[%clk 0:02:43]} 10. d3 {[%clk 0:02:52]}  h6 {[%clk 0:02:42]} 11. h3 {[%clk 0:02:52]}  Be6 {[%clk 0:02:41]} 12. Bc2 {[%clk 0:02:49]}  d5 {[%clk 0:02:36]} 13. Nbd2 {[%clk 0:02:41]}  dxe4 {[%clk 0:02:35]} 14. dxe4 {[%clk 0:02:36]}  Qe7 {[%clk 0:02:27]} 15. Nf1 {[%clk 0:02:34]}  Bc4 {[%clk 0:02:21]} 16. Bd3 {[%clk 0:02:31]}  Bxd3 {[%clk 0:02:21]} 17. Rxd3 {[%clk 0:02:30]}  Nh5 {[%clk 0:02:09]} 18. Be3 {[%clk 0:02:22]}  Bxe3 {[%clk 0:02:08]} 19. Qxe3 {[%clk 0:02:22]}  Nf4 {[%clk 0:02:08]} 20. Rd2 {[%clk 0:02:18]}  Qe6 {[%clk 0:02:02]} 21. b3 {[%clk 0:02:04]}  Rad8 {[%clk 0:01:25]} 22. Rad1 {[%clk 0:02:03]}  Rxd2 {[%clk 0:01:24]} 23. Rxd2 {[%clk 0:02:04]}  Rd8 {[%clk 0:01:09]} 24. Rxd8+ {[%clk 0:01:46]}  Nxd8 {[%clk 0:01:10]} 25. Qc5 {[%clk 0:01:17]}  Qd6 {[%clk 0:01:09]} 26. Qxe5 {[%clk 0:01:02]}  Qxe5 {[%clk 0:01:06]} 27. Nxe5 {[%clk 0:01:02]}  Ne2+ {[%clk 0:01:06]} 28. Kh2 {[%clk 0:01:02]}  Nxc3 {[%clk 0:01:06]} 29. Ne3 {[%clk 0:00:29]}  Nxe4 {[%clk 0:01:02]} 30. f3 {[%clk 0:00:29]}  Nc3 {[%clk 0:01:02]} 31. a3 {[%clk 0:00:28]}  Ne6 {[%clk 0:00:58]} 32. Nc6 {[%clk 0:00:22]}  Nc5 {[%clk 0:00:53]} 33. b4 {[%clk 0:00:20]}  Nb3 {[%clk 0:00:47]} 34. Nb8 {[%clk 0:00:20]}  a5 {[%clk 0:00:47]} 35. Nc6 {[%clk 0:00:18]}  a4 {[%clk 0:00:43]} 36. Nf5 {[%clk 0:00:15]}  Nb1 {[%clk 0:00:41]} 37. Nfd4 {[%clk 0:00:13]}  Nxd4 {[%clk 0:00:40]} 38. Nxd4 {[%clk 0:00:14]}  Nxa3 {[%clk 0:00:31]} 39. Kg3 {[%clk 0:00:14]}  Kf8 {[%clk 0:00:27]} 40. Kf4 {[%clk 0:00:12]}  Ke7 {[%clk 0:00:28]} 41. Ke5 {[%clk 0:00:08]}  Nc4+ {[%clk 0:00:28]} 42. Ke4 {[%clk 0:00:08]}  a3 {[%clk 0:00:27]} 43. Kd3 {[%clk 0:00:08]}  a2 {[%clk 0:00:26]} 44. Nb3 {[%clk 0:00:08]}  Kd6 {[%clk 0:00:24]} 45. Kd4 {[%clk 0:00:08]}  g5 {[%clk 0:00:19]} 46. g3 {[%clk 0:00:09]}  f5 {[%clk 0:00:18]} 47. h4 {[%clk 0:00:09]}  f4 {[%clk 0:00:17]} 48. hxg5 {[%clk 0:00:07]}  fxg3 {[%clk 0:00:16]} 49. gxh6 {[%clk 0:00:07]}  g2 {[%clk 0:00:17]} 50. h7 {[%clk 0:00:07]}  g1=Q+ {[%clk 0:00:17]} 51. Kc3 {[%clk 0:00:07]}  Qe3+ {[%clk 0:00:15]} 52. Kc2 {[%clk 0:00:07]}  Qe2+ {[%clk 0:00:15]} 53. Kc3 {[%clk 0:00:07]}  Qb2+ {[%clk 0:00:16]} 54. Kd3 {[%clk 0:00:07]}  Qxb3+ {[%clk 0:00:16]} 55. Ke4 {[%clk 0:00:04]}  a1=Q {[%clk 0:00:16]} 0-1


[Site "https://www.chess.com"]

[Event "Titled Tuesday Blitz November 14 Late 2023"]
[White "Aarakan, J"]
[Black "Sturt, Raven"]
[WhiteFideId "9946276"]
[BlackFideId "2007304"]
[WhiteElo "2225"]
[BlackElo "2634"]
[Result "1-0"]
[Round "2"]
[TimeControl "180+1"]
[Date "2023.11.14"]
[WhiteClock "0:01:01"]
[BlackClock "0:00:00"]
[Board "79"]

1. e4 {[%clk 0:03:00]}  e5 {[%clk 0:03:00]} 2. Nf3 {[%clk 0:03:00]}  Nc6 {[%clk 0:03:00]} 3. Bc4 {[%clk 0:03:00]}  Nf6 {[%clk 0:02:58]} 4. Ng5 {[%clk 0:03:00]}  d5 {[%clk 0:02:55]} 5. exd5 {[%clk 0:03:00]}  Na5 {[%clk 0:02:55]} 6. d3 {[%clk 0:03:01]}  h6 {[%clk 0:02:53]} 7. Nf3 {[%clk 0:03:00]}  e4 {[%clk 0:02:53]} 8. Qe2 {[%clk 0:03:00]}  Nxc4 {[%clk 0:02:52]} 9. dxc4 {[%clk 0:03:01]}  Bc5 {[%clk 0:02:52]} 10. c3 {[%clk 0:03:01]}  O-O {[%clk 0:02:24]} 11. Nd4 {[%clk 0:03:01]}  Bg4 {[%clk 0:02:24]} 12. Qc2 {[%clk 0:03:01]}  c6 {[%clk 0:02:23]} 13. dxc6 {[%clk 0:02:58]}  bxc6 {[%clk 0:02:20]} 14. Be3 {[%clk 0:02:57]}  Qd7 {[%clk 0:02:14]} 15. Nd2 {[%clk 0:02:56]}  Rab8 {[%clk 0:02:12]} 16. b4 {[%clk 0:02:49]}  Bd6 {[%clk 0:02:12]} 17. Nxe4 {[%clk 0:02:41]}  Nxe4 {[%clk 0:02:06]} 18. Qxe4 {[%clk 0:02:41]}  c5 {[%clk 0:01:51]} 19. bxc5 {[%clk 0:02:21]}  Bxc5 {[%clk 0:01:37]} 20. O-O {[%clk 0:02:21]}  Rfe8 {[%clk 0:01:36]} 21. Qd5 {[%clk 0:02:17]}  Qc8 {[%clk 0:01:14]} 22. Rfe1 {[%clk 0:02:09]}  Rb2 {[%clk 0:01:11]} 23. h3 {[%clk 0:02:01]}  Bd7 {[%clk 0:01:07]} 24. Rab1 {[%clk 0:01:51]}  Rxa2 {[%clk 0:01:05]} 25. Rb7 {[%clk 0:01:39]}  Re7 {[%clk 0:01:02]} 26. Reb1 {[%clk 0:01:32]}  Bb6 {[%clk 0:01:00]} 27. Bf4 {[%clk 0:01:21]}  Ra5 {[%clk 0:00:00]} 28. Nb5 {[%clk 0:01:01]} 1-0


[Site "https://www.chess.com"]

[Event "Titled Tuesday Blitz November 14 Late 2023"]
[White "Martin Barcelo, Carles"]
[Black "Klekowski, Maciej"]
[WhiteFideId "24561444"]
[BlackFideId "1132717"]
[WhiteElo "2478"]
[BlackElo "2836"]
[Result "0-1"]
[Round "2"]
[TimeControl "180+1"]
[Date "2023.11.14"]
[WhiteClock "0:00:41"]
[BlackClock "0:01:15"]
[Board "84"]

1. e4 {[%clk 0:03:00]}  c5 {[%clk 0:03:00]} 2. Nc3 {[%clk 0:02:58]}  Nc6 {[%clk 0:03:00]} 3. Bb5 {[%clk 0:02:58]}  Nd4 {[%clk 0:03:00]} 4. Nf3 {[%clk 0:02:59]}  a6 {[%clk 0:02:57]} 5. Bd3 {[%clk 0:02:57]}  e6 {[%clk 0:02:55]} 6. Nxd4 {[%clk 0:02:57]}  cxd4 {[%clk 0:02:55]} 7. Ne2 {[%clk 0:02:58]}  Bc5 {[%clk 0:02:51]} 8. O-O {[%clk 0:02:53]}  Ne7 {[%clk 0:02:52]} 9. c3 {[%clk 0:02:49]}  Nc6 {[%clk 0:02:47]} 10. b4 {[%clk 0:02:48]}  Ba7 {[%clk 0:02:47]} 11. a4 {[%clk 0:02:49]}  dxc3 {[%clk 0:02:45]} 12. dxc3 {[%clk 0:02:48]}  O-O {[%clk 0:02:46]} 13. b5 {[%clk 0:02:35]}  Ne5 {[%clk 0:02:39]} 14. bxa6 {[%clk 0:02:34]}  Nxd3 {[%clk 0:02:38]} 15. Qxd3 {[%clk 0:02:35]}  bxa6 {[%clk 0:02:38]} 16. Be3 {[%clk 0:02:35]}  Bb8 {[%clk 0:02:38]} 17. Bf4 {[%clk 0:02:34]}  Bxf4 {[%clk 0:02:27]} 18. Nxf4 {[%clk 0:02:35]}  a5 {[%clk 0:02:27]} 19. Qd6 {[%clk 0:02:33]}  Ra6 {[%clk 0:02:25]} 20. Qe5 {[%clk 0:02:24]}  Rc6 {[%clk 0:02:20]} 21. Ne2 {[%clk 0:02:08]}  Ba6 {[%clk 0:02:19]} 22. Rfe1 {[%clk 0:02:09]}  d6 {[%clk 0:02:17]} 23. Qd4 {[%clk 0:02:07]}  Qc7 {[%clk 0:02:18]} 24. Rad1 {[%clk 0:02:02]}  Rd8 {[%clk 0:02:16]} 25. Rc1 {[%clk 0:02:00]}  Rc4 {[%clk 0:02:16]} 26. Qd3 {[%clk 0:01:57]}  Qc8 {[%clk 0:02:06]} 27. Nd4 {[%clk 0:01:51]}  Rxa4 {[%clk 0:02:06]} 28. Qd2 {[%clk 0:01:51]}  Rc4 {[%clk 0:02:06]} 29. Rc2 {[%clk 0:01:49]}  a4 {[%clk 0:02:04]} 30. h3 {[%clk 0:01:49]}  h6 {[%clk 0:02:03]} 31. Ra1 {[%clk 0:01:49]}  Bb7 {[%clk 0:01:57]} 32. Qd3 {[%clk 0:01:47]}  e5 {[%clk 0:01:41]} 33. Nf5 {[%clk 0:01:46]}  Bxe4 {[%clk 0:01:42]} 34. Qxe4 {[%clk 0:01:35]}  Rxe4 {[%clk 0:01:42]} 35. Ne7+ {[%clk 0:01:36]}  Kf8 {[%clk 0:01:42]} 36. Nxc8 {[%clk 0:01:36]}  Rxc8 {[%clk 0:01:43]} 37. Ra3 {[%clk 0:01:31]}  Rec4 {[%clk 0:01:43]} 38. Rca2 {[%clk 0:01:32]}  Rxc3 {[%clk 0:01:42]} 39. Rxa4 {[%clk 0:01:32]}  Rc1+ {[%clk 0:01:42]} 40. Kh2 {[%clk 0:01:32]}  R1c2 {[%clk 0:01:43]} 41. Rxc2 {[%clk 0:01:21]}  Rxc2 {[%clk 0:01:44]} 42. Kg3 {[%clk 0:01:21]}  Ke7 {[%clk 0:01:45]} 43. Kf3 {[%clk 0:01:19]}  Ke6 {[%clk 0:01:45]} 44. Ra6 {[%clk 0:01:19]}  h5 {[%clk 0:01:43]} 45. g4 {[%clk 0:01:17]}  Rc3+ {[%clk 0:01:42]} 46. Kg2 {[%clk 0:01:18]}  h4 {[%clk 0:01:43]} 47. Ra8 {[%clk 0:01:17]}  g5 {[%clk 0:01:39]} 48. Rg8 {[%clk 0:01:17]}  f6 {[%clk 0:01:39]} 49. Re8+ {[%clk 0:01:15]}  Kd5 {[%clk 0:01:40]} 50. f3 {[%clk 0:01:13]}  Rc2+ {[%clk 0:01:38]} 51. Kg1 {[%clk 0:01:12]}  Rc6 {[%clk 0:01:32]} 52. Kf2 {[%clk 0:01:11]}  Kc5 {[%clk 0:01:30]} 53. Ra8 {[%clk 0:01:11]}  d5 {[%clk 0:01:30]} 54. Ke3 {[%clk 0:01:07]}  Kb4 {[%clk 0:01:25]} 55. Rb8+ {[%clk 0:01:05]}  Kc3 {[%clk 0:01:26]} 56. Rb1 {[%clk 0:01:03]}  Kc2 {[%clk 0:01:25]} 57. Ra1 {[%clk 0:00:54]}  d4+ {[%clk 0:01:25]} 58. Ke2 {[%clk 0:00:54]}  d3+ {[%clk 0:01:25]} 59. Ke3 {[%clk 0:00:54]}  Rd6 {[%clk 0:01:16]} 60. Ra2+ {[%clk 0:00:53]}  Kb3 {[%clk 0:01:15]} 61. Rd2 {[%clk 0:00:41]}  Kc3 {[%clk 0:01:15]} 0-1


[Site "https://www.chess.com"]

[Event "Titled Tuesday Blitz November 14 Late 2023"]
[White "Margvelashvili, Giorgi"]
[Black "YouShallNotPass001"]
[WhiteFideId "13602926"]
[WhiteElo "2830"]
[BlackElo "2480"]
[Result "1-0"]
[Round "2"]
[TimeControl "180+1"]
[Date "2023.11.14"]
[WhiteClock "0:00:19"]
[BlackClock "0:01:14"]
[Board "85"]

1. d4 {[%clk 0:03:00]}  Nf6 {[%clk 0:03:00]} 2. c4 {[%clk 0:03:00]}  e6 {[%clk 0:03:01]} 3. Nf3 {[%clk 0:03:00]}  d5 {[%clk 0:03:02]} 4. e3 {[%clk 0:02:59]}  Be7 {[%clk 0:03:01]} 5. b3 {[%clk 0:02:59]}  O-O {[%clk 0:03:02]} 6. Bb2 {[%clk 0:03:00]}  Ne4 {[%clk 0:02:59]} 7. Bd3 {[%clk 0:02:56]}  b6 {[%clk 0:02:59]} 8. O-O {[%clk 0:02:56]}  Bb7 {[%clk 0:02:59]} 9. Nc3 {[%clk 0:02:44]}  Nd7 {[%clk 0:02:59]} 10. Rc1 {[%clk 0:02:44]}  Nxc3 {[%clk 0:02:53]} 11. Bxc3 {[%clk 0:02:44]}  dxc4 {[%clk 0:02:54]} 12. bxc4 {[%clk 0:02:43]}  c5 {[%clk 0:02:52]} 13. d5 {[%clk 0:02:40]}  exd5 {[%clk 0:02:51]} 14. cxd5 {[%clk 0:02:41]}  Bf6 {[%clk 0:02:49]} 15. e4 {[%clk 0:02:35]}  Re8 {[%clk 0:02:46]} 16. Re1 {[%clk 0:02:31]}  Bxc3 {[%clk 0:02:33]} 17. Rxc3 {[%clk 0:02:32]}  Qf6 {[%clk 0:02:33]} 18. Rc2 {[%clk 0:02:14]}  Re7 {[%clk 0:02:33]} 19. Rce2 {[%clk 0:01:58]}  Rae8 {[%clk 0:02:31]} 20. Bb5 {[%clk 0:01:39]}  a6 {[%clk 0:02:25]} 21. Bxd7 {[%clk 0:01:36]}  Rxd7 {[%clk 0:02:26]} 22. h3 {[%clk 0:01:23]}  c4 {[%clk 0:02:21]} 23. Qb1 {[%clk 0:01:08]}  b5 {[%clk 0:02:18]} 24. a4 {[%clk 0:01:08]}  bxa4 {[%clk 0:01:56]} 25. Qb4 {[%clk 0:01:06]}  c3 {[%clk 0:01:53]} 26. Qxa4 {[%clk 0:01:05]}  Rde7 {[%clk 0:01:52]} 27. e5 {[%clk 0:00:59]}  Qf5 {[%clk 0:01:50]} 28. d6 {[%clk 0:00:57]}  Re6 {[%clk 0:01:46]} 29. Nd4 {[%clk 0:00:53]}  Qg6 {[%clk 0:01:45]} 30. f4 {[%clk 0:00:54]}  Rc8 {[%clk 0:01:33]} 31. f5 {[%clk 0:00:49]}  Qg3 {[%clk 0:01:28]} 32. fxe6 {[%clk 0:00:36]}  fxe6 {[%clk 0:01:29]} 33. Qd7 {[%clk 0:00:29]}  c2 {[%clk 0:01:26]} 34. Qxe6+ {[%clk 0:00:22]}  Kh8 {[%clk 0:01:25]} 35. Nxc2 {[%clk 0:00:21]}  h6 {[%clk 0:01:19]} 36. d7 {[%clk 0:00:20]}  Rd8 {[%clk 0:01:14]} 37. Qe8+ {[%clk 0:00:19]} 1-0


[Site "https://www.chess.com"]